bitfinex-derivatives/quotes_BNBF0:USTF0_20250907
["timestamp","ask_amount","ask_price","bid_price","bid_amount"]
[1757278890661,0.19852872,878.26,877.2,2.56487595]
[1757278895860,0.19852872,878.26,877.2,3.33392773]
[1757278907077,0.19852872,878.26,877.2,3.33385375]
[1757278944702,0.19852872,878.26,877.2,1.90458967]
[1757278945202,1.02906646,878.18,877.2,1.90458967]
[1757278946198,1.02906646,878.2,877.2,1.90458967]
[1757278946702,1.02906646,878.21,877.2,1.90458967]
[1757278947299,1.02906646,878.25,877.2,1.90458967]
[1757278948902,0.19852872,878.26,877.2,1.90458967]
[1757278958507,1.02906646,878.23,877.2,1.90458967]
[1757278959907,1.02906646,878.22,877.2,1.90458967]
[1757278960712,0.19852872,878.26,877.2,1.90458967]
[1757278963109,0.19852872,878.26,877.2,1.9062217]
[1757278972920,0.19852872,878.26,877.19,0.77060983]
[1757278977021,0.19852872,878.26,877.19,1.79800969]
[1757278979221,0.19852872,878.26,877.18,1.79800969]
[1757278980721,0.19852872,878.26,877.17,1.79800969]
[1757278988137,0.19852872,878.26,877.17,2.93362156]
[1757278996249,0.19852872,878.26,877.18,3.65951287]
[1757278996550,0.19852872,878.26,877.19,3.65951287]
[1757278996749,0.19852872,878.26,877.19,2.93362156]
[1757278997346,0.19852872,878.26,877.2,1.75325284]
[1757278997646,0.19852872,878.26,877.2,2.93362156]
[1757279003751,0.19852872,878.26,877.18,2.93362156]
[1757279013559,0.19852872,878.26,877.18,1.79800969]
[1757279017165,0.19852872,878.26,877.19,2.52628937]
[1757279017365,0.19852872,878.26,877.19,1.79800969]
[1757279022162,0.19852872,878.26,877.19,2.93362156]
[1757279035676,0.19852872,878.26,877.19,2.16301173]
[1757279035876,0.19852872,878.26,877.19,2.93340897]
[1757279038275,1.5378965,878.44,877.19,2.93340897]
[1757279038474,1.5378965,878.43,877.19,2.93340897]
[1757279038979,0.19852759,878.13,877.19,2.93340897]
[1757279040576,0.19852759,878.13,877.19,0.77039724]
[1757279040779,0.19852759,878.13,877.18,2.16301173]
[1757279040780,0.19852759,878.13,877.18,2.93340897]
[1757279051690,0.19852759,878.13,877.18,1.7977971]
[1757279054288,0.19852759,878.13,877.18,2.93340897]
[1757279055392,0.19852759,878.13,877.18,1.7977971]
[1757279056294,0.19852759,878.13,877.18,2.93340897]
[1757279086221,1.5378965,878.53,877.12,2.73486269]
[1757279086422,1.5378965,878.48,877.06,1.7977971]
[1757279086717,1.5378965,878.47,877.05,1.7977971]
[1757279087320,1.5378965,878.49,877.05,1.7977971]
[1757279087716,1.5378965,878.49,876.19,2.5666806]
[1757279087717,1.5378965,878.71,876.96,1.7977971]
[1757279088217,1.5378965,878.73,876.96,0.77039724]
[1757279089320,0.19855534,878.29,876.96,0.77039724]
[1757279089519,0.19855534,878.29,876.94,0.77039724]
[1757279089821,0.19855534,878.29,876.94,1.7977971]
[1757279095021,0.19855534,878.29,876.91,1.7977971]
[1757279098323,0.19855534,878.29,876.89,1.7977971]
[1757279105431,1.5378965,878.34,876.89,1.59920097]
[1757279105929,1.5378965,878.28,876.89,1.59920097]
[1757279106330,1.5378965,878.29,876.89,1.59920097]
[1757279107035,1.5378965,878.33,876.89,1.59920097]
[1757279107329,1.5378965,878.37,876.89,1.59920097]
[1757279107531,1.5378965,878.35,876.86,1.02739986]
[1757279107731,1.5378965,878.36,876.86,1.02739986]
[1757279107931,1.5378965,878.43,876.86,1.02739986]
[1757279108133,1.5378965,878.41,876.86,1.02739986]
[1757279108533,0.19859386,878.03,876.86,1.02739986]
[1757279118146,0.19859386,878.03,876.83,1.02739986]
[1757279127348,0.19859386,878.03,876.82,1.02739986]
[1757279136659,0.19859386,878.03,876.81,1.02739986]
[1757279141960,0.19859386,878.03,876.81,2.56462695]
[1757279153171,1.73649036,878.03,876.81,2.56462695]
[1757279153672,0.19859386,878.03,876.81,2.56462695]
[1757279165584,0.19859386,878.03,876.81,3.33562686]
[1757279166187,0.19859386,878.03,876.81,1.79839977]
[1757279171384,0.19859386,878.03,876.81,1.02739986]
[1757279171583,0.19859386,878.03,876.81,1.79855825]
[1757279176093,0.19859386,878.03,876.81,3.33578534]
[1757279180996,0.19859386,878.03,876.81,1.79855825]
[1757279183698,0.19859386,878.03,876.81,3.33578534]
[1757279188908,0.19859386,878.03,876.82,1.49464247]
[1757279189104,0.19859386,878.03,876.95,1.79855825]
[1757279189304,0.19859386,878.03,876.99,1.79855825]
[1757279191312,0.19859386,878.03,876.99,0.77115839]
[1757279192014,0.19859386,878.03,876.99,1.79855825]
[1757279194115,0.19859386,878.03,876.99,1.02739986]
[1757279194315,0.19859386,878.03,876.99,1.79692442]
[1757279207827,0.19859386,878.03,876.99,0.76952456]
[1757279209729,0.19859386,878.03,877.03,0.76952456]
[1757279211430,0.19859386,878.03,877.1,1.79692442]
[1757279212728,0.19859386,878.03,877.11,0.72058275]
[1757279212927,0.19859386,878.03,877.11,1.79692442]
[1757279213431,0.19859386,878.03,877.15,1.79692442]
[1757279215228,0.19859386,878.03,877.15,0.76952456]
[1757279216334,0.19859386,878.03,877.17,1.79692442]
[1757279217532,0.19859386,878.03,877.19,1.79692442]
[1757279217731,0.19859386,878.03,877.19,0.76952456]
[1757279217935,0.19859386,878.03,877.2,1.48932803]
[1757279218132,0.19859386,878.03,877.2,0.76952456]
[1757279218633,0.19859386,878.03,877.25,0.76952456]
[1757279218838,0.19859386,878.03,877.26,1.48907079]
[1757279219136,0.19859386,878.03,877.26,0.76952456]
[1757279227038,0.19859386,878.03,877.27,1.4882246]
[1757279227242,0.19859386,878.03,877.27,0.76952456]
[1757279233853,0.19859386,878.03,877.21,1.02739986]
[1757279234152,0.19859386,878.03,877.27,0.76569224]
[1757279244763,0.19859386,878.03,877.27,1.7930921]
[1757279261069,0.19859386,878.03,877.27,3.33031919]
[1757279261274,0.19859386,878.03,877.27,1.7930921]
[1757279261972,0.19859386,878.03,877.27,1.5930921]
[1757279263172,0.19859386,878.03,877.27,3.13031919]
[1757279264769,0.19859386,878.03,877.27,1.5930921]
[1757279265075,0.19859386,878.03,877.27,3.13031919]
[1757279271178,0.19859386,878.03,877.26,2.56462695]
[1757279308519,1.02536811,878.37,877.26,2.56462695]
[1757279308715,0.19852476,877.84,877.26,2.56462695]
[1757279308919,1.02536811,878.35,877.26,2.56462695]
[1757279309219,0.19852589,877.7,877.26,2.56462695]
[1757279309419,1.02536811,878.35,877.26,2.36462695]
[1757279309818,1.02536811,878.34,877.26,2.36462695]
[1757279310722,0.19852645,878.08,877.26,2.36462695]
[1757279322127,0.19852645,878.08,877.26,3.13425086]
[1757279323223,0.19852645,878.08,877.25,1.79702377]
[1757279323424,1.02536811,878.36,877.16,0.76962391]
[1757279323629,1.02536811,878.32,877.13,0.76962391]
[1757279324428,1.02536811,878.23,877.08,0.76962391]
[1757279325428,1.02536811,878.25,877.08,0.76962391]
[1757279326433,0.19855421,877.96,877.08,0.76962391]
[1757279334239,0.19855421,877.96,877.08,2.30720242]
[1757279336441,0.19855421,877.96,877.08,0.76962391]
[1757279336738,0.19855421,877.96,877.08,2.30720242]
[1757279337041,0.19855421,877.96,877.08,0.76962391]
[1757279353448,0.19855421,877.96,877.08,1.79331671]
[1757279354249,0.19855421,877.96,877.08,1.79146291]
[1757279358051,0.19855421,877.96,877.08,3.32904142]
[1757279363057,0.19855421,877.96,877.06,3.32904142]
[1757279365756,0.19855421,877.96,877.06,1.79146291]
[1757279366355,0.19855421,877.96,877.06,3.32904142]
[1757279366958,0.19855421,877.96,877.06,1.79146291]
[1757279369263,0.19855421,877.96,877.06,3.32904142]
[1757279373566,0.19855421,877.96,877.06,1.79146291]
[1757279374967,0.19855421,877.96,877.06,3.32904142]
[1757279377167,0.19855421,877.96,877.06,3.32988728]
[1757279421705,0.19855421,877.96,877.06,1.79230877]
[1757279425404,1.02536811,878.14,876.91,1.59373757]
[1757279425606,1.02536811,878.13,876.91,1.59373757]
[1757279425810,1.02536811,878.13,876.91,1.39373757]
[1757279426208,1.02536811,878.16,876.91,1.39373757]
[1757279426409,1.02536811,878.12,876.91,1.39373757]
[1757279427208,1.02536811,878.13,876.91,1.39373757]
[1757279427817,1.02536811,878.12,876.91,1.39373757]
[1757279428313,0.19859386,877.82,876.91,1.39373757]
[1757279456945,0.19859386,877.82,876.91,2.93131608]
[1757279457847,0.19859386,877.82,876.91,1.39373757]
[1757279460845,0.19859386,877.82,876.91,2.93131608]
[1757279462852,0.19859386,877.82,876.91,1.39373757]
[1757279489568,0.19859386,877.82,876.91,2.93131608]
[1757279500480,0.19859386,877.82,876.91,1.5015774]
[1757279530810,0.19859386,877.82,876.91,2.5299772]
[1757279560740,0.19859386,877.82,876.91,3.30115073]
[1757279588974,0.19859386,877.82,876.91,1.79957333]
[1757279591778,0.19859386,877.82,876.91,3.30115073]
[1757279625301,0.19859386,877.82,876.91,1.79957333]
[1757279625702,0.19859386,877.82,876.9,1.79957333]
[1757279628206,1.5378965,878.49,876.9,1.79957333]
[1757279628501,0.198578,877.6,876.9,1.79957333]
[1757279628706,1.5378965,878.49,876.9,1.79957333]
[1757279628906,0.198578,877.43,876.9,1.79957333]
[1757279629108,1.5378965,878.49,876.9,1.79957333]
[1757279630409,0.198578,878.1,876.9,1.79957333]
[1757279635308,0.198578,878.1,876.9,3.30115073]
[1757279640213,0.198578,878.1,876.9,0.77117353]
[1757279640714,0.198578,878.1,876.9,0.57117353]
[1757279645113,0.198578,878.1,876.8,1.0283998]
[1757279645316,0.198578,878.1,876.81,0.7274728]
[1757279645516,0.198578,878.1,876.82,0.7274728]
[1757279645812,0.198578,878.1,876.83,0.7274728]
[1757279646112,0.198578,878.1,876.84,0.7274728]
[1757279646316,0.198578,878.1,876.77,1.0283998]
[1757279646617,0.198578,878.1,876.78,0.7280043]
[1757279646817,0.198578,878.1,876.79,0.7280043]
[1757279647017,0.198578,878.1,876.8,0.7280043]
[1757279647216,0.198578,878.1,876.81,0.7280043]
[1757279647517,0.198578,878.1,876.82,0.7280043]
[1757279647818,0.198578,878.1,876.69,1.0283998]
[1757279648113,0.198578,878.1,876.7,1.7563037]
[1757279648317,0.198578,878.1,876.71,0.7279039]
[1757279648517,0.198578,878.1,876.72,0.7279039]
[1757279648717,0.198578,878.1,876.73,0.7279039]
[1757279648916,0.198578,878.1,876.69,1.0283998]
[1757279648917,0.198578,878.1,876.74,0.7279039]
[1757279649217,0.198578,878.1,876.75,0.7279039]
[1757279649417,0.198578,878.1,876.76,0.7279039]
[1757279649617,0.198578,878.1,876.82,1.0283998]
[1757279650414,0.198578,878.1,876.77,1.0283998]
[1757279650618,0.198578,878.1,876.78,0.7277277]
[1757279650816,0.198578,878.1,876.79,1.7561275]
[1757279651015,0.198578,878.1,876.74,1.0283998]
[1757279655418,0.198578,878.1,876.69,1.0283998]
[1757279655621,0.198578,878.1,876.7,0.727144]
[1757279655817,0.198578,878.1,876.71,0.727144]
[1757279656116,0.198578,878.1,876.72,0.727144]
[1757279656322,0.198578,878.1,876.73,0.727144]
[1757279656524,0.198578,878.1,876.69,1.0283998]
[1757279656722,0.198578,878.1,876.7,0.7270537]
[1757279656921,0.198578,878.1,876.71,0.7270537]
[1757279657123,0.198578,878.1,876.72,0.7270537]
[1757279657326,0.198578,878.1,876.73,0.7270537]
[1757279657522,0.198578,878.1,876.68,1.0283998]
[1757279657726,0.198578,878.1,876.69,0.7269731]
[1757279657926,0.198578,878.1,876.7,0.7269731]
[1757279658126,0.198578,878.1,876.71,0.7269731]
[1757279658428,0.198578,878.1,876.72,0.7269731]
[1757279658625,0.198578,878.1,876.73,0.7269731]
[1757279658927,0.198578,878.1,876.68,1.0283998]
[1757279659124,0.198578,878.1,876.69,0.7268317]
[1757279659324,0.198578,878.1,876.7,0.7268317]
[1757279659529,0.198578,878.1,876.71,0.7268317]
[1757279659725,0.198578,878.1,876.72,0.7268317]
[1757279659925,0.198578,878.1,876.73,0.7268317]
[1757279660123,0.198578,878.1,876.67,1.0283998]
[1757279660326,0.198578,878.1,876.69,1.0283998]
[1757279660530,0.198578,878.1,876.7,0.7266524]
[1757279660728,0.198578,878.1,876.66,1.0283998]
[1757279661029,0.198578,878.1,876.67,1.7550645]
[1757279661228,0.198578,878.1,876.68,0.7266647]
[1757279661424,0.198578,878.1,876.69,0.7266647]
[1757279661629,0.198578,878.1,876.67,1.0283998]
[1757279661928,0.198578,878.1,876.68,0.7265851]
[1757279662129,0.198578,878.1,876.69,0.7265851]
[1757279662330,0.198578,878.1,876.66,1.0283998]
[1757279662626,0.198578,878.1,876.67,0.726508]
[1757279662831,0.198578,878.1,876.68,0.726508]
[1757279663031,0.198578,878.1,876.69,0.726508]
[1757279663231,0.198578,878.1,876.66,1.0283998]
[1757279663530,0.198578,878.1,876.67,0.7264379]
[1757279663731,0.198578,878.1,876.68,0.7264379]
[1757279663925,0.198578,878.1,876.69,0.7264379]
[1757279664130,0.198578,878.1,876.66,1.0283998]
[1757279664328,0.198578,878.1,876.67,0.726429]
[1757279664532,0.198578,878.1,876.68,0.726429]
[1757279664734,0.198578,878.1,876.69,0.726429]
[1757279664935,0.198578,878.1,876.65,1.0283998]
[1757279665135,0.198578,878.1,876.66,0.7263745]
[1757279665334,0.198578,878.1,876.67,0.7263745]
[1757279665532,0.198578,878.1,876.68,0.7263745]
[1757279665832,0.198578,878.1,876.56,1.0283998]
[1757279666035,0.198578,878.1,876.57,0.7263699]
[1757279666232,0.198578,878.1,876.58,0.7263699]
[1757279666436,0.198578,878.1,876.59,0.7263699]
[1757279666635,0.198578,878.1,876.6,0.7263699]
[1757279666834,0.198578,878.1,876.61,0.7263699]
[1757279667036,0.198578,878.1,876.62,0.7263699]
[1757279667234,0.198578,878.1,876.63,0.7263699]
[1757279667437,0.198578,878.1,876.55,1.0283998]
[1757279667438,0.198578,878.1,876.64,0.7263699]
[1757279667635,0.198578,878.1,876.65,0.7263699]
[1757279667838,0.198578,878.1,876.66,0.5263699]
[1757279668038,0.198578,878.1,876.55,1.0283998]
[1757279668238,0.198578,878.1,876.54,1.0283998]
[1757279668636,0.198578,878.1,876.56,1.0283998]
[1757279669639,0.198578,878.1,876.55,1.0283998]
[1757279670243,0.198578,878.1,876.58,1.0283998]
[1757279670439,0.198578,878.1,876.54,1.0283998]
[1757279672445,0.198578,878.1,876.53,1.0283998]
[1757279675248,0.198578,878.1,876.6,1.0283998]
[1757279675446,0.198578,878.1,876.49,1.0283998]
[1757279676349,0.198578,878.1,876.48,1.0283998]
[1757279679954,0.198578,878.1,876.49,0.725276]
[1757279680155,0.198578,878.1,876.5,1.7536758]
[1757279680454,0.198578,878.1,875.4,1.836]
[1757279680455,0.198578,878.1,876.51,0.725276]
[1757279680748,0.198578,878.1,876.52,0.725276]
[1757279680953,0.198578,878.1,876.53,0.725276]
[1757279681151,0.198578,878.1,876.54,0.725276]
[1757279681351,0.198578,878.1,876.55,0.725276]
[1757279681651,0.198578,878.1,876.56,0.725276]
[1757279681955,0.198578,878.1,876.57,0.725276]
[1757279682155,0.198578,878.1,876.58,0.725276]
[1757279682356,0.198578,878.1,876.59,0.725276]
[1757279682554,0.198578,878.1,876.37,1.0283998]
[1757279682752,0.198578,878.1,876.38,0.7252753]
[1757279683056,0.198578,878.1,876.39,0.7252753]
[1757279683258,0.198578,878.1,876.4,0.7252753]
[1757279683553,0.198578,878.1,876.41,0.7252753]
[1757279683757,0.198578,878.1,876.37,1.0283998]
[1757279683758,0.198578,878.1,876.42,0.7252753]
[1757279683954,0.198578,878.1,876.43,0.7252753]
[1757279684159,0.198578,878.1,876.44,0.7252753]
[1757279684356,0.198578,878.1,876.45,0.7252753]
[1757279684559,0.198578,878.1,876.46,0.7252753]
[1757279684761,0.198578,878.1,876.35,1.0283998]
[1757279684762,0.198578,878.1,876.47,0.7252753]
[1757279684960,0.198578,878.1,876.48,0.7252753]
[1757279685162,0.198578,878.1,876.49,0.7252753]
[1757279685360,0.198578,878.1,876.4,1.0283998]
[1757279685361,0.198578,878.1,876.5,0.7252753]
[1757279685660,0.198578,878.1,876.51,0.7252753]
[1757279685860,0.198578,878.1,876.52,0.7252753]
[1757279686057,0.198578,878.1,876.53,0.7252753]
[1757279686256,0.198578,878.1,876.54,0.7252753]
[1757279686458,0.198578,878.1,876.55,0.7252753]
[1757279686659,0.198578,878.1,876.39,1.0283998]
[1757279686858,0.198578,878.1,876.4,0.7251775]
[1757279687060,0.198578,878.1,876.41,0.7251775]
[1757279687259,0.198578,878.1,876.42,0.7251775]
[1757279687459,0.198578,878.1,876.43,0.7251775]
[1757279687761,0.198578,878.1,876.44,0.7251775]
[1757279687960,0.198578,878.1,876.45,0.7251775]
[1757279688262,0.198578,878.1,876.46,0.7251775]
[1757279688462,0.198578,878.1,876.39,1.0283998]
[1757279688463,0.198578,878.1,876.47,0.7251775]
[1757279688763,0.198578,878.1,876.48,0.7251775]
[1757279688963,0.198578,878.1,876.54,1.0283998]
[1757279689159,0.198578,878.1,876.55,0.7251775]
[1757279689356,0.198578,878.1,876.54,1.0283998]
[1757279689563,0.198578,878.1,876.55,0.7251199]
[1757279689760,0.198578,878.1,876.54,1.0283998]
[1757279689963,0.198578,878.1,876.55,0.7251198]
[1757279690164,0.198578,878.1,876.54,1.0283998]
[1757279690364,0.198578,878.1,876.55,1.7535456]
[1757279690665,0.198578,878.1,876.45,1.0283998]
[1757279690864,0.198578,878.1,876.46,0.7251522]
[1757279691164,0.198578,878.1,876.47,0.7251522]
[1757279691464,0.198578,878.1,876.48,0.7251522]
[1757279691664,0.198578,878.1,876.49,0.7251522]
[1757279691859,0.198578,878.1,876.5,0.7251522]
[1757279692063,0.198578,878.1,876.51,0.7251522]
[1757279692264,0.198578,878.1,876.52,0.7251522]
[1757279692559,0.198578,878.1,876.53,0.7251522]
[1757279692863,0.198578,878.1,876.54,0.7251522]
[1757279693061,0.198578,878.1,876.45,1.0283998]
[1757279693261,0.198578,878.1,876.46,0.7251833]
[1757279693460,0.198578,878.1,876.47,0.7251833]
[1757279693664,0.198578,878.1,876.48,0.7251833]
[1757279693862,0.198578,878.1,876.49,0.7251833]
[1757279694061,0.198578,878.1,876.5,0.7251833]
[1757279694264,0.198578,878.1,876.45,1.0283998]
[1757279694461,0.198578,878.1,876.46,0.7251497]
[1757279694666,0.198578,878.1,876.47,0.7251497]
[1757279694863,0.198578,878.1,876.48,0.7251497]
[1757279695066,0.198578,878.1,876.49,0.7251497]
[1757279695264,0.198578,878.1,876.5,0.7251497]
[1757279695468,0.198578,878.1,876.4,1.0283998]
[1757279695769,0.198578,878.1,876.41,0.7251652]
[1757279695963,0.198578,878.1,876.42,0.7251652]
[1757279696165,0.198578,878.1,876.43,0.7251652]
[1757279696366,0.198578,878.1,876.44,0.7251652]
[1757279696570,0.198578,878.1,876.45,0.7251652]
[1757279696770,0.198578,878.1,876.46,0.7251652]
[1757279697066,0.198578,878.1,876.39,1.0283998]
[1757279697067,0.198578,878.1,876.47,0.7251652]
[1757279697267,0.198578,878.1,876.48,0.7251652]
[1757279697470,0.198578,878.1,876.49,0.7251652]
[1757279697672,0.198578,878.1,876.39,1.0283998]
[1757279697968,0.198578,878.1,876.4,0.5251815]
[1757279698168,0.198578,878.1,876.39,1.0283998]
[1757279699968,0.198578,878.1,876.46,1.0283998]
[1757279700474,0.198578,878.1,876.39,1.0283998]
[1757279700674,0.198578,878.1,876.38,1.0283998]
[1757279700973,0.198578,878.1,876.45,0.7693751]
[1757279701768,0.198578,878.1,876.44,0.7693751]
[1757279705081,1.5378965,878.05,876.44,1.7977749]
[1757279705384,0.198578,878.1,876.43,0.7693751]
[1757279710486,1.7364745,878.1,876.43,0.7693751]
[1757279710788,1.5378965,878.07,876.43,1.7977749]
[1757279714289,1.5378965,878.06,876.42,1.7977749]
[1757279714594,1.5378965,878.05,876.42,1.7977749]
[1757279715295,1.5378965,877.83,876.42,1.7977749]
[1757279715492,1.5378965,877.84,876.42,1.7977749]
[1757279717596,1.5378965,877.91,876.42,1.7977749]
[1757279720296,1.5378965,877.9,876.42,1.7977749]
[1757279720494,1.5378965,877.89,876.42,1.7977749]
[1757279722901,1.5378965,877.88,876.42,1.7977749]
[1757279723702,1.5378965,877.89,876.42,1.7977749]
[1757279724297,1.5378965,877.88,876.42,1.7977749]
[1757279725405,0.198578,878.1,876.44,0.7693751]
[1757279728507,0.198578,878.1,876.44,0.5693751]
[1757279734410,0.198578,878.1,876.11,1.5015774]
[1757279734411,0.198578,878.1,876.55,1.0283998]
[1757279734605,0.198578,878.1,876.62,1.0283998]
[1757279744518,1.5378965,878.05,876.62,1.0283998]
[1757279745316,1.5378965,878.06,876.62,1.0283998]
[1757279749921,1.5378965,878.04,876.62,1.0283998]
[1757279750419,1.5378965,878.05,876.62,1.0283998]
[1757279750620,1.5378965,877.97,876.62,2.5299772]
[1757279752023,1.5378965,878.08,876.62,1.0283998]
[1757279753425,1.5378965,878.09,876.62,1.0283998]
[1757279757327,1.7364745,878.1,876.62,1.0283998]
[1757279760431,1.5378965,878.08,876.62,1.0283998]
[1757279760831,1.5378965,878.01,876.62,1.0283998]
[1757279761734,1.5378965,878.02,876.62,1.0283998]
[1757279761932,1.5378965,877.93,876.62,2.5299772]
[1757279767639,1.5378965,877.99,876.62,2.5299772]
[1757279768039,1.5378965,878.0,876.62,1.0283998]
[1757279768339,1.5378965,878.01,876.62,1.0283998]
[1757279770638,1.5378965,878.0,876.62,1.0283998]
[1757279771742,1.5378965,878.02,876.62,1.0283998]
[1757279776047,1.5378965,878.03,876.62,1.0283998]
[1757279776243,1.5378965,878.02,876.62,1.0283998]
[1757279777350,1.5378965,878.01,876.62,1.0283998]
[1757279777646,1.5378965,877.98,876.62,2.5299772]
[1757279778048,1.5378965,877.95,876.62,2.5299772]
[1757279779853,1.5378965,877.96,876.62,2.5299772]
[1757279780351,1.5378965,877.95,876.62,2.5299772]
[1757279780551,1.5378965,877.96,876.62,2.5299772]
[1757279781651,1.5378965,877.92,876.62,2.5299772]
[1757279782650,1.5378965,877.93,876.62,2.5299772]
[1757279783249,1.5378965,877.92,876.62,2.5299772]
[1757279783452,1.5378965,877.93,876.62,2.5299772]
[1757279783754,1.5378965,877.97,876.62,2.5299772]
[1757279785258,1.5378965,877.96,876.62,2.5299772]
[1757279785955,1.5378965,877.95,876.62,2.5299772]
[1757279786255,1.5378965,877.94,876.62,2.5299772]
[1757279787562,1.5378965,877.96,876.62,2.5299772]
[1757279788260,1.5378965,877.95,876.62,2.5299772]
[1757279788461,1.5378965,877.97,876.62,2.5299772]
[1757279788657,1.5378965,877.97,876.62,3.30022239]
[1757279789359,1.5378965,877.96,876.62,3.30022239]
[1757279790361,1.5378965,877.95,876.62,3.30022239]
[1757279791462,1.5378965,877.94,876.62,3.30022239]
[1757279791665,1.5378965,877.95,876.62,3.30022239]
[1757279792468,1.5378965,877.93,876.62,3.30022239]
[1757279793166,1.5378965,877.94,876.62,3.30022239]
[1757279793363,1.5378965,877.91,876.61,3.30022239]
[1757279793561,1.5378965,877.87,876.6,3.30022239]
[1757279794362,1.5378965,877.84,876.6,3.30022239]
[1757279797265,1.5378965,877.82,876.6,3.30022239]
[1757279798466,1.5378965,877.79,876.6,3.30022239]
[1757279799671,1.5378965,877.78,876.6,3.30022239]
[1757279802373,1.5378965,877.78,876.6,3.10022239]
[1757279802771,1.02954979,877.63,876.6,3.10022239]
[1757279808373,1.02954979,877.66,876.6,3.10022239]
[1757279808874,1.02954979,877.68,876.6,3.10022239]
[1757279811179,1.02954979,877.73,876.6,3.10022239]
[1757279811376,1.02954979,877.76,876.6,3.10022239]
[1757279815882,1.02954979,877.75,876.6,3.10022239]
[1757279818285,1.02954979,877.74,876.6,3.10022239]
[1757279820980,1.02954979,877.71,876.6,3.10022239]
[1757279821186,1.02954979,877.66,876.6,3.10022239]
[1757279821983,1.02954979,877.69,876.6,3.10022239]
[1757279822482,1.02954979,877.67,876.59,3.10022239]
[1757279823488,1.02954979,877.68,876.6,3.10022239]
[1757279825390,1.02954979,877.67,876.59,3.10022239]
[1757279825586,1.02954979,877.68,876.6,3.10022239]
[1757279826691,1.02954979,877.67,876.6,3.10022239]
[1757279827193,1.02954979,877.67,876.59,3.10022239]
[1757279828394,1.02954979,877.68,876.59,3.10022239]
[1757279828896,1.02954979,877.67,876.59,3.10022239]
[1757279829697,1.02954979,877.7,876.59,3.10022239]
[1757279830092,1.02954979,877.69,876.59,3.10022239]
[1757279830596,0.19868174,877.42,876.6,3.10022239]
[1757279832399,1.02954979,877.69,876.6,2.90154065]
[1757279833394,1.02954979,877.75,876.6,2.90154065]
[1757279835401,1.02954979,877.74,876.6,2.90154065]
[1757279836102,1.02954979,877.76,876.6,2.90154065]
[1757279836301,1.02954979,877.77,876.6,1.59996325]
[1757279837001,1.02954979,877.76,876.6,1.59996325]
[1757279837198,1.02954979,877.75,876.6,2.90154065]
[1757279837397,0.19867833,877.48,876.6,2.90154065]
[1757279855808,1.02954979,877.94,876.42,1.0283998]
[1757279856208,1.02954979,877.93,876.41,1.0283998]
[1757279856408,1.02954979,877.95,876.39,1.0283998]
[1757279856612,1.02954979,877.95,876.39,0.8283998]
[1757279857310,1.02954979,877.96,876.06,1.3015774]
[1757279858609,1.02954979,877.97,876.06,1.3015774]
[1757279858810,0.1987101,877.49,876.06,1.3015774]
[1757279859415,0.1987101,877.49,876.05,1.3015774]
[1757279859710,0.1987101,877.49,876.06,1.3015774]
[1757279860413,0.1987101,877.49,876.05,1.3015774]
[1757279865721,0.1987101,877.49,876.38,1.3015774]
[1757279866324,0.1987101,877.49,876.37,1.3015774]
[1757279866621,0.1987101,877.49,876.42,1.3015774]
[1757279866919,0.1987101,877.49,875.65,2.5666806]
[1757279866920,0.1987101,877.49,876.37,1.3015774]
[1757279867926,0.1987101,877.49,876.24,1.3015774]
[1757279868128,0.1987101,877.49,876.29,1.3015774]
[1757279871727,0.1987101,877.49,876.28,1.3015774]
[1757279873231,0.1987101,877.49,876.26,1.3015774]
[1757279873726,0.1987101,877.49,876.24,1.3015774]
[1757279874630,0.1987101,877.49,876.26,1.3015774]
[1757279877729,0.1987101,877.49,876.27,1.3015774]
[1757279877927,0.1987101,877.49,876.38,1.3015774]
[1757279881632,0.1987101,877.49,876.39,1.3015774]
[1757279882831,0.1987101,877.49,876.43,1.3015774]
[1757279883236,0.1987101,877.49,876.47,1.3015774]
[1757279883433,0.1987101,877.49,876.53,1.3015774]
[1757279884340,0.1987101,877.49,876.51,1.3015774]
[1757279884539,0.1987101,877.49,876.52,1.3015774]
[1757279885034,0.1987101,877.49,876.08,1.3015774]
[1757279885836,0.1987101,877.49,876.06,1.3015774]
[1757279886136,0.1987101,877.49,876.04,1.3015774]
[1757279886539,0.1987101,877.49,876.36,1.02820684]
[1757279894741,0.1987101,877.49,876.48,1.02820684]
[1757279899858,0.1987101,877.49,876.48,2.32978424]
[1757279900258,0.1987101,877.49,876.48,1.02820684]
[1757279910268,0.1987101,877.49,876.48,2.32978424]
[1757279914269,0.1987101,877.49,876.48,1.02820684]
[1757279914475,0.1987101,877.49,876.47,1.02820684]
[1757279915971,0.1987101,877.49,876.47,1.59993537]
[1757279924274,0.1987101,877.49,876.47,2.90151277]
[1757279928279,0.1987101,877.49,876.47,1.59993537]
[1757279938187,0.1987101,877.49,876.47,2.90151277]
[1757279946690,0.1987101,877.49,876.45,2.90151277]
[1757279959894,0.1987101,877.49,876.44,2.90151277]